[Event "CZE-ch Women 2019"]
[Site "Prague"]
[Date "2019.06.16"]
[Round "2.5"]
[White "Laurincova, Kristyna"]
[Black "Kulovana, Eva"]
[Result "0-1"]
[ECO "B12"]
[WhiteElo "1984"]
[BlackElo "2208"]
[Annotator "NA"]
[PlyCount "70"]
[EventDate "2019.06.15"]
[EventType "tourn"]
[EventCountry "CZE"]
[SourceTitle "playchess.com"]
[Source "ChessBase"]
[SourceQuality "1"]
[TimeControl "40/5400+30:1800+30"]

1. e4 {[%emt 0:00:00]} c6 {[%emt 0:00:00]} 2. d4 {[%emt 0:00:00]} d5 {[%emt 0:00:00]} 3. e5 {[%emt 0:00:00]} c5 {[%emt 0:03:35]} 4. dxc5 {[%emt 0:23:21]} Nc6 {[%emt 0:02:36]} 5. Bb5 {[%emt 0:01:36]} e6 {[%emt 0:00:23]} 6. Bxc6+ {[%emt 0:04:02]} bxc6 {[%emt 0:00:07]} 7. b4 {[%emt 0:01:11]} a5 {[%emt 0:05:18]} 8. c3 {[%emt 0:04:54]} Ba6 {[%emt 0:00:13]} 9. f4 {[%emt 0:14:39]} Qb8 {[%emt 0:15:40]} 10. a3 {[%emt 0:06:07]} h5 {[%emt 0:16:35]} 11. Nf3 {[%emt 0:04:36]} f6 {[%emt 0:12:30]} 12. Nbd2 {[%emt 0:11:28]} Ne7 {[%emt 0:01:42]} 13. Nb3 {[%emt 0:00:18]} axb4 {[%emt 0:04:57]} 14. cxb4 {[%emt 0:03:14]} Nf5 {[%emt 0:00:50]} 15. Nbd4 {[%emt 0:02:12]} Nxd4 {[%emt 0:00:58]} 16. Nxd4 {[%emt 0:04:03]} Kd7 {[%emt 0:02:26]} 17. Nf3 {[%emt 0:05:48]} Be7 {[%emt 0:00:26]} 18. Kf2 {[%emt 0:00:53]} g5 {[%emt 0:01:06]} 19. Qd4 {[%emt 0:02:40]} g4 {[%emt 0:03:08]} 20. exf6 {[%emt 0:03:16]} gxf3 {[%emt 0:00:32]} 21. fxe7 {[%emt 0:00:06]} fxg2 {[%emt 0:01:27]} 22. Re1 {[%emt 0:01:55]} Rg8 {[%emt 0:01:11]} 23. Bb2 {[%emt 0:03:48]} Qb5 {[%emt 0:00:32]} 24. Qe5 {[%emt 0:01:07]} Rae8 {[%emt 0:09:44]} 25. Qxe6+ {[%emt 0:00:16]} Kc7 {[%emt 0:00:10]} 26. Qd6+ {[%emt 0:00:56]} Kb7 {[%emt 0:00:18]} 27. Qd7+ {[%emt 0:00:28]} Ka8 {[%emt 0:00:12]} 28. Qe6 {[%emt 0:00:32]} Rg4 {[%emt 0:05:22]} 29. Qe3 {[%emt 0:00:29]} Qc4 {[%emt 0:00:47]} 30. Bd4 {[%emt 0:00:33]} Qc2+ {[%emt 0:01:00]} 31. Kg1 {[%emt 0:00:29]} Qc4 {[%emt 0:00:39]} 32. Kf2 {[%emt 0:00:25]} Rxe7 {[%emt 0:02:24]} 33. Qxe7 {[%emt 0:00:28]} Qxd4+ {[%emt 0:00:05]} 34. Qe3 {[%emt 0:00:25]} g1=Q+ {[%emt 0:00:22]} 35. Rxg1 {[%emt 0:00:35]} Rxf4+ {[%emt 0:00:08]} 0-1

[Event "CZE-ch Women 2019"]
[Site "Prague"]
[Date "2019.06.17"]
[Round "3.1"]
[White "Kulovana, Eva"]
[Black "Novosadova, Kristyna"]
[Result "0-1"]
[ECO "A48"]
[WhiteElo "2208"]
[BlackElo "2209"]
[Annotator "NA"]
[PlyCount "90"]
[EventDate "2019.06.15"]
[EventType "tourn"]
[EventCountry "CZE"]
[SourceTitle "playchess.com"]
[Source "ChessBase"]
[SourceQuality "1"]
[TimeControl "40/5400+30:1800+30"]

1. d4 {[%emt 0:00:00]} Nf6 {[%emt 0:00:00]} 2. Nf3 {[%emt 0:00:00]} g6 {[%emt 0:00:09]} 3. Bg5 {[%emt 0:00:00]} Bg7 {[%emt 0:01:16]} 4. c3 {[%emt 0:00:36]} d5 {[%emt 0:02:50]} 5. Nbd2 {[%emt 0:01:15]} Nbd7 {[%emt 0:06:00]} 6. e3 {[%emt 0:01:11]} c5 {[%emt 0:02:43]} 7. Bd3 {[%emt 0:00:47]} h6 {[%emt 0:03:23]} 8. Bh4 {[%emt 0:03:25]} Qb6 {[%emt 0:02:57]} 9. Qb3 {[%emt 0:10:03]} Qe6 {[%emt 0:05:15]} 10. c4 {[%emt 0:05:46]} cxd4 {[%emt 0:03:24]} 11. cxd5 {[%emt 0:07:02]} Nxd5 {[%emt 0:02:25]} 12. e4 {[%emt 0:00:40]} N7b6 {[%emt 0:06:34]} 13. Bb5+ {[%emt 0:03:25]} Kf8 {[%emt 0:00:50]} 14. O-O {[%emt 0:06:24]} Nc7 {[%emt 0:05:32]} 15. Bd3 {[%emt 0:03:03]} Qxb3 {[%emt 0:09:00]} 16. Nxb3 {[%emt 0:01:51]} Bg4 {[%emt 0:01:53]} 17. Nfd2 {[%emt 0:01:25]} g5 {[%emt 0:01:49]} 18. Bg3 {[%emt 0:00:07]} Ne6 {[%emt 0:00:27]} 19. Rac1 {[%emt 0:04:17]} Na4 {[%emt 0:04:36]} 20. Rc2 {[%emt 0:00:39]} b6 {[%emt 0:00:18]} 21. f3 {[%emt 0:03:44]} Bh5 {[%emt 0:01:28]} 22. Rfc1 {[%emt 0:00:08]} Kg8 {[%emt 0:05:54]} 23. e5 {[%emt 0:02:49]} Nec5 {[%emt 0:02:40]} 24. Nxc5 {[%emt 0:01:46]} Nxc5 {[%emt 0:01:55]} 25. Bf1 {[%emt 0:02:21]} Bg6 {[%emt 0:04:11]} 26. Rc4 {[%emt 0:00:22]} Rd8 {[%emt 0:00:44]} 27. b4 {[%emt 0:03:47]} Ne6 {[%emt 0:00:41]} 28. Re1 {[%emt 0:03:10]} Kh7 {[%emt 0:01:57]} 29. Bf2 {[%emt 0:00:31]} Rd5 {[%emt 0:01:17]} 30. g3 {[%emt 0:09:24]} Bf5 {[%emt 0:04:34]} 31. h4 {[%emt 0:09:13]} gxh4 {[%emt 0:05:21]} 32. g4 {[%emt 0:00:43]} Bg6 {[%emt 0:00:08]} 33. Bxh4 {[%emt 0:00:14]} Rxe5 {[%emt 0:00:41]} 34. Rxe5 {[%emt 0:00:24]} Bxe5 {[%emt 0:00:05]} 35. Bxe7 {[%emt 0:00:35]} Re8 {[%emt 0:02:25]} 36. Bh4 {[%emt 0:00:21]} Bf4 {[%emt 0:00:32]} 37. Ne4 {[%emt 0:04:17]} Bxe4 {[%emt 0:00:06]} 38. fxe4 {[%emt 0:00:03]} Rg8 {[%emt 0:00:24]} 39. Bf6 {[%emt 0:02:33]} Rxg4+ {[%emt 0:01:00]} 40. Kf2 {[%emt 0:01:06]} Be3+ {[%emt 0:00:41]} 41. Ke1 {[%emt 0:30:41]} Rg1 {[%emt 0:35:44]} 42. Rc6 {[%emt 0:04:21]} d3 {[%emt 0:04:27]} 43. Rd6 {[%emt 0:00:38]} d2+ {[%emt 0:00:08]} 44. Ke2 {[%emt 0:00:11]} Rxf1 {[%emt 0:00:15]} 45. Kxf1 {[%emt 0:02:39]} Nd4 {[%emt 0:00:09]} 0-1

[Event "CZE-ch Women 2019"]
[Site "Prague"]
[Date "2019.06.17"]
[Round "3.2"]
[White "Olsarova, Karolina"]
[Black "Laurincova, Kristyna"]
[Result "1-0"]
[ECO "B70"]
[WhiteElo "2260"]
[BlackElo "1984"]
[Annotator "NA"]
[PlyCount "77"]
[EventDate "2019.06.15"]
[EventType "tourn"]
[EventCountry "CZE"]
[SourceTitle "playchess.com"]
[Source "ChessBase"]
[SourceQuality "1"]
[TimeControl "40/5400+30:1800+30"]

1. e4 {[%emt 0:00:00]} c5 {[%emt 0:00:00]} 2. Nf3 {[%emt 0:00:00]} d6 {[%emt 0:00:00]} 3. d4 {[%emt 0:00:00]} cxd4 {[%emt 0:00:00]} 4. Nxd4 {[%emt 0:00:06]} Nf6 {[%emt 0:00:00]} 5. Nc3 {[%emt 0:00:06]} g6 {[%emt 0:00:12]} 6. g3 {[%emt 0:00:20]} Nc6 {[%emt 0:01:00]} 7. Nde2 {[%emt 0:00:56]} Bd7 {[%emt 0:00:45]} 8. Bg2 {[%emt 0:00:14]} Qc8 {[%emt 0:00:15]} 9. h3 {[%emt 0:00:08]} Bg7 {[%emt 0:00:30]} 10. Be3 {[%emt 0:01:58]} O-O {[%emt 0:01:20]} 11. Nd5 {[%emt 0:16:09]} Nxd5 {[%emt 0:07:52]} 12. exd5 {[%emt 0:00:07]} Ne5 {[%emt 0:03:09]} 13. Bd4 {[%emt 0:05:50]} Bb5 {[%emt 0:18:47]} 14. Bc3 {[%emt 0:08:09]} Qc4 {[%emt 0:09:42]} 15. Nd4 {[%emt 0:20:22]} Ba6 {[%emt 0:02:43]} 16. Nb3 {[%emt 0:03:04]} Rac8 {[%emt 0:13:34]} 17. Qd2 {[%emt 0:10:59]} Qa4 {[%emt 0:05:34]} 18. Qd1 {[%emt 0:06:34]} Rc4 {[%emt 0:14:53]} 19. f4 {[%emt 0:07:03]} Re4+ {[%emt 0:08:04]} 20. Bxe4 {[%emt 0:05:30]} Qxe4+ {[%emt 0:00:01]} 21. Kf2 {[%emt 0:00:13]} Bh6 {[%emt 0:09:42]} 22. Re1 {[%emt 0:06:15]} Qf5 {[%emt 0:00:01]} 23. Kg2 {[%emt 0:00:47]} Nc4 {[%emt 0:02:44]} 24. Rc1 {[%emt 0:04:11]} Nb6 {[%emt 0:00:18]} 25. Qd4 {[%emt 0:01:37]} Qxd5+ {[%emt 0:00:43]} 26. Qxd5 {[%emt 0:00:02]} Nxd5 {[%emt 0:00:06]} 27. Bd4 {[%emt 0:00:07]} Rc8 {[%emt 0:00:51]} 28. Nd2 {[%emt 0:01:51]} Kf8 {[%emt 0:00:30]} 29. Kf3 {[%emt 0:01:04]} Nb4 {[%emt 0:00:16]} 30. Bxa7 {[%emt 0:00:36]} Nxc2 {[%emt 0:00:33]} 31. Kf2 {[%emt 0:00:30]} Bd3 {[%emt 0:00:51]} 32. Re3 {[%emt 0:00:29]} Bf5 {[%emt 0:00:32]} 33. Rb3 {[%emt 0:00:30]} Rc7 {[%emt 0:00:31]} 34. Bb6 {[%emt 0:00:15]} Rc6 {[%emt 0:00:11]} 35. Ba7 {[%emt 0:00:47]} Ra6 {[%emt 0:00:48]} 36. Rxb7 {[%emt 0:00:13]} Rxa2 {[%emt 0:00:15]} 37. g4 {[%emt 0:00:47]} Bxf4 {[%emt 0:00:46]} 38. gxf5 {[%emt 0:00:26]} Rxa7 {[%emt 0:00:30]} 39. Rxa7 {[%emt 0:00:34]} 1-0

[Event "CZE-ch Women 2019"]
[Site "Prague"]
[Date "2019.06.17"]
[Round "3.3"]
[White "Sikorova, Olga"]
[Black "Kanakova, Natalie"]
[Result "1/2-1/2"]
[ECO "A04"]
[WhiteElo "2248"]
[BlackElo "2201"]
[Annotator "NA"]
[PlyCount "54"]
[EventDate "2019.06.15"]
[EventType "tourn"]
[EventCountry "CZE"]
[SourceTitle "playchess.com"]
[Source "ChessBase"]
[SourceQuality "1"]
[TimeControl "40/5400+30:1800+30"]

1. Nf3 {[%emt 0:00:00]} c5 {[%emt 0:00:00]} 2. c4 {[%emt 0:00:30]} g6 {[%emt 0:01:24]} 3. g3 {[%emt 0:00:11]} Bg7 {[%emt 0:00:22]} 4. Bg2 {[%emt 0:00:09]} Nc6 {[%emt 0:00:19]} 5. O-O {[%emt 0:00:56]} e5 {[%emt 0:00:52]} 6. Nc3 {[%emt 0:00:23]} Nge7 {[%emt 0:00:36]} 7. Ne1 {[%emt 0:02:09]} O-O {[%emt 0:02:41]} 8. Nc2 {[%emt 0:00:10]} Rb8 {[%emt 0:03:37]} 9. a3 {[%emt 0:05:59]} d6 {[%emt 0:09:14]} 10. Ne3 {[%emt 0:04:38]} a6 {[%emt 0:04:17]} 11. Ned5 {[%emt 0:07:40]} b5 {[%emt 0:02:21]} 12. cxb5 {[%emt 0:14:53]} axb5 {[%emt 0:00:08]} 13. b4 {[%emt 0:00:38]} cxb4 {[%emt 0:12:44]} 14. axb4 {[%emt 0:01:03]} Be6 {[%emt 0:00:26]} 15. Nxe7+ {[%emt 0:01:29]} Nxe7 {[%emt 0:02:45]} 16. Bb2 {[%emt 0:17:33]} d5 {[%emt 0:01:59]} 17. Ra6 {[%emt 0:11:21]} Qd7 {[%emt 0:07:54]} 18. Qa1 {[%emt 0:02:11]} Nc6 {[%emt 0:02:51]} 19. Qa3 {[%emt 0:01:26]} e4 {[%emt 0:08:18]} 20. d3 {[%emt 0:11:27]} exd3 {[%emt 0:03:10]} 21. exd3 {[%emt 0:00:22]} Ne5 {[%emt 0:01:22]} 22. Ne2 {[%emt 0:04:31]} Bf5 {[%emt 0:05:17]} 23. Nf4 {[%emt 0:02:11]} d4 {[%emt 0:03:12]} 24. Ra7 {[%emt 0:00:48]} Qd6 {[%emt 0:02:44]} 25. Ra6 {[%emt 0:00:40]} Qd7 {[%emt 0:07:12]} 26. Ra7 {[%emt 0:00:08]} Qd6 {[%emt 0:00:32]} 27. Ra6 {[%emt 0:01:46]} Qd7 1/2-1/2

[Event "CZE-ch Women 2019"]
[Site "Prague"]
[Date "2019.06.17"]
[Round "3.4"]
[White "Rodshtein, Tereza"]
[Black "Petrova, Kristyna"]
[Result "1/2-1/2"]
[ECO "B33"]
[WhiteElo "2213"]
[BlackElo "2259"]
[Annotator "NA"]
[PlyCount "60"]
[EventDate "2019.06.15"]
[EventType "tourn"]
[EventCountry "CZE"]
[SourceTitle "playchess.com"]
[Source "ChessBase"]
[SourceQuality "1"]
[TimeControl "40/5400+30:1800+30"]

1. e4 {[%emt 0:00:00]} c5 {[%emt 0:00:00]} 2. Nf3 {[%emt 0:00:00]} Nc6 {[%emt 0:00:00]} 3. d4 {[%emt 0:00:10]} cxd4 {[%emt 0:00:00]} 4. Nxd4 {[%emt 0:00:04]} Nf6 {[%emt 0:00:00]} 5. Nc3 {[%emt 0:00:08]} e6 {[%emt 0:00:00]} 6. Ndb5 {[%emt 0:07:54]} Bb4 {[%emt 0:00:10]} 7. a3 {[%emt 0:00:06]} Bxc3+ {[%emt 0:00:06]} 8. Nxc3 {[%emt 0:00:05]} d5 {[%emt 0:00:08]} 9. exd5 {[%emt 0:04:05]} exd5 {[%emt 0:00:08]} 10. Bd3 {[%emt 0:00:30]} O-O {[%emt 0:00:24]} 11. O-O {[%emt 0:02:41]} d4 {[%emt 0:00:15]} 12. Ne2 {[%emt 0:01:42]} Bg4 {[%emt 0:01:10]} 13. Bg5 {[%emt 0:08:04]} Qd6 {[%emt 0:03:11]} 14. f3 {[%emt 0:05:24]} Bh5 {[%emt 0:01:43]} 15. Qd2 {[%emt 0:02:06]} Rad8 {[%emt 0:43:50]} 16. Qf4 {[%emt 0:16:56]} Bg6 {[%emt 0:07:34]} 17. Qxd6 {[%emt 0:13:11]} Rxd6 {[%emt 0:00:06]} 18. Nf4 {[%emt 0:00:05]} Bxd3 {[%emt 0:06:41]} 19. Nxd3 {[%emt 0:01:15]} Nd5 {[%emt 0:00:52]} 20. Rfe1 {[%emt 0:01:47]} f6 {[%emt 0:00:41]} 21. Bd2 {[%emt 0:00:34]} Kf7 {[%emt 0:01:06]} 22. Kf2 {[%emt 0:00:25]} Re8 {[%emt 0:03:38]} 23. Rxe8 {[%emt 0:02:53]} Kxe8 {[%emt 0:00:55]} 24. h4 {[%emt 0:07:46]} Kf7 {[%emt 0:06:25]} 25. Re1 {[%emt 0:04:08]} b6 {[%emt 0:00:19]} 26. Nf4 {[%emt 0:01:12]} Ne5 {[%emt 0:03:11]} 27. Re4 {[%emt 0:05:34]} Nxf4 {[%emt 0:06:25]} 28. Bxf4 {[%emt 0:02:01]} d3 {[%emt 0:04:22]} 29. cxd3 {[%emt 0:00:33]} Nxd3+ {[%emt 0:00:05]} 30. Kg3 {[%emt 0:01:39]} Nxf4 {[%emt 0:02:18]} 1/2-1/2

[Event "CZE-ch Women 2019"]
[Site "Prague"]
[Date "2019.06.18"]
[Round "4.1"]
[White "Novosadova, Kristyna"]
[Black "Miturova, Magdalena"]
[Result "0-1"]
[ECO "E16"]
[WhiteElo "2209"]
[BlackElo "2220"]
[Annotator "NA"]
[PlyCount "72"]
[EventDate "2019.06.15"]
[EventType "tourn"]
[EventCountry "CZE"]
[SourceTitle "playchess.com"]
[Source "ChessBase"]
[SourceQuality "1"]
[TimeControl "40/5400+30:1800+30"]

1. d4 {[%emt 0:00:00]} Nf6 {[%emt 0:00:00]} 2. c4 {[%emt 0:00:00]} e6 {[%emt 0:00:00]} 3. Nf3 {[%emt 0:00:00]} Bb4+ {[%emt 0:00:01]} 4. Bd2 {[%emt 0:00:00]} Qe7 {[%emt 0:00:44]} 5. g3 {[%emt 0:00:21]} Ne4 {[%emt 0:05:38]} 6. a3 {[%emt 0:06:02]} Bxd2+ {[%emt 0:02:05]} 7. Nfxd2 {[%emt 0:07:39]} Nxd2 {[%emt 0:00:55]} 8. Qxd2 {[%emt 0:00:06]} d5 {[%emt 0:04:57]} 9. Nc3 {[%emt 0:05:18]} c6 {[%emt 0:00:17]} 10. b3 {[%emt 0:10:16]} f5 {[%emt 0:09:00]} 11. Bg2 {[%emt 0:01:13]} Nd7 {[%emt 0:01:32]} 12. O-O {[%emt 0:01:10]} Nf6 {[%emt 0:02:57]} 13. f3 {[%emt 0:01:57]} O-O {[%emt 0:02:17]} 14. e4 {[%emt 0:00:33]} b6 {[%emt 0:13:34]} 15. e5 {[%emt 0:11:50]} Ne8 {[%emt 0:03:14]} 16. f4 {[%emt 0:01:51]} Nc7 {[%emt 0:02:25]} 17. Rfc1 {[%emt 0:07:46]} Bb7 {[%emt 0:05:45]} 18. cxd5 {[%emt 0:04:30]} exd5 {[%emt 0:00:58]} 19. Nd1 {[%emt 0:04:36]} Ne6 {[%emt 0:05:36]} 20. b4 {[%emt 0:03:00]} Rad8 {[%emt 0:03:58]} 21. Rab1 {[%emt 0:04:59]} Kh8 {[%emt 0:02:48]} 22. a4 {[%emt 0:01:56]} Ba8 {[%emt 0:00:46]} 23. Nc3 {[%emt 0:06:46]} g5 {[%emt 0:05:19]} 24. Ne2 {[%emt 0:02:54]} c5 {[%emt 0:04:38]} 25. bxc5 {[%emt 0:04:59]} bxc5 {[%emt 0:00:11]} 26. dxc5 {[%emt 0:00:23]} Nxc5 {[%emt 0:06:17]} 27. Qb4 {[%emt 0:00:10]} Rc8 {[%emt 0:00:12]} 28. Nd4 {[%emt 0:00:26]} gxf4 {[%emt 0:03:59]} 29. Nb3 {[%emt 0:03:05]} Qxe5 {[%emt 0:01:13]} 30. Nxc5 {[%emt 0:04:15]} Qe3+ {[%emt 0:00:39]} 31. Kh1 {[%emt 0:03:37]} f3 {[%emt 0:00:11]} 32. Bf1 {[%emt 0:00:12]} d4 {[%emt 0:02:35]} 33. h4 {[%emt 0:00:59]} f4 {[%emt 0:03:06]} 34. Nb7 {[%emt 0:03:24]} fxg3 {[%emt 0:03:17]} 35. Rc2 {[%emt 0:00:46]} Qf4 {[%emt 0:02:53]} 36. Rd2 {[%emt 0:00:22]} Qxh4+ {[%emt 0:00:33]} 0-1

[Event "CZE-ch Women 2019"]
[Site "Prague"]
[Date "2019.06.18"]
[Round "4.2"]
[White "Petrova, Kristyna"]
[Black "Pychova, Nela"]
[Result "1/2-1/2"]
[ECO "A30"]
[WhiteElo "2259"]
[BlackElo "2174"]
[Annotator "NA"]
[PlyCount "84"]
[EventDate "2019.06.15"]
[EventType "tourn"]
[EventCountry "CZE"]
[SourceTitle "playchess.com"]
[Source "ChessBase"]
[SourceQuality "1"]
[TimeControl "40/5400+30:1800+30"]

1. Nf3 {[%emt 0:00:00]} Nf6 {[%emt 0:00:02]} 2. c4 {[%emt 0:00:00]} e6 {[%emt 0:01:31]} 3. Nc3 {[%emt 0:00:00]} c5 {[%emt 0:03:43]} 4. g3 {[%emt 0:00:28]} b6 {[%emt 0:01:27]} 5. Bg2 {[%emt 0:00:48]} Bb7 {[%emt 0:00:07]} 6. O-O {[%emt 0:02:33]} Be7 {[%emt 0:00:49]} 7. d4 {[%emt 0:05:20]} cxd4 {[%emt 0:08:11]} 8. Nxd4 {[%emt 0:00:53]} Bxg2 {[%emt 0:00:59]} 9. Kxg2 {[%emt 0:00:05]} a6 {[%emt 0:00:25]} 10. e4 {[%emt 0:04:15]} Qc7 {[%emt 0:05:50]} 11. Be3 {[%emt 0:17:12]} O-O {[%emt 0:02:14]} 12. Rc1 {[%emt 0:00:43]} Qb7 {[%emt 0:01:19]} 13. Qf3 {[%emt 0:04:28]} Ra7 {[%emt 0:05:10]} 14. h3 {[%emt 0:24:12]} d6 {[%emt 0:06:37]} 15. Nb3 {[%emt 0:08:57]} Rc8 {[%emt 0:15:09]} 16. Nd2 {[%emt 0:01:09]} Nc6 {[%emt 0:00:59]} 17. Kg1 {[%emt 0:01:18]} Raa8 {[%emt 0:03:03]} 18. Qe2 {[%emt 0:02:15]} Rab8 {[%emt 0:00:31]} 19. a4 {[%emt 0:04:30]} Nd7 {[%emt 0:01:56]} 20. Rfd1 {[%emt 0:07:40]} Nc5 {[%emt 0:03:22]} 21. Nf3 {[%emt 0:01:09]} Nb3 {[%emt 0:04:11]} 22. Rb1 {[%emt 0:03:42]} Nca5 {[%emt 0:01:37]} 23. Nd4 {[%emt 0:01:21]} Nxd4 {[%emt 0:07:47]} 24. Rxd4 {[%emt 0:00:05]} Nb3 {[%emt 0:00:21]} 25. Rd3 {[%emt 0:05:45]} Qc6 {[%emt 0:10:27]} 26. Qd1 {[%emt 0:00:05]} Qxc4 {[%emt 0:05:46]} 27. Nd5 {[%emt 0:00:23]} exd5 {[%emt 0:00:55]} 28. Rxb3 {[%emt 0:00:24]} dxe4 {[%emt 0:02:22]} 29. Rxb6 {[%emt 0:00:10]} Rxb6 {[%emt 0:00:35]} 30. Bxb6 {[%emt 0:00:02]} Qb4 {[%emt 0:03:24]} 31. Bd4 {[%emt 0:01:24]} Rc4 {[%emt 0:01:53]} 32. Bc3 {[%emt 0:00:12]} Qb6 {[%emt 0:01:05]} 33. Ra1 {[%emt 0:03:43]} Qc6 {[%emt 0:01:15]} 34. Qb3 {[%emt 0:00:41]} Bf8 {[%emt 0:00:59]} 35. a5 {[%emt 0:00:25]} Rc5 {[%emt 0:00:44]} 36. Qb8 {[%emt 0:00:59]} Rb5 {[%emt 0:00:37]} 37. Qd8 {[%emt 0:00:18]} Rb7 {[%emt 0:00:29]} 38. Bxg7 {[%emt 0:00:34]} Kxg7 {[%emt 0:00:13]} 39. Qg5+ {[%emt 0:00:03]} Kh8 {[%emt 0:00:11]} 40. Qf6+ {[%emt 0:00:04]} Kg8 {[%emt 0:00:09]} 41. Qg5+ {[%emt 0:30:19]} Bg7 {[%emt 0:31:24]} 42. Qd8+ {[%emt 0:00:07]} Bf8 {[%emt 0:00:05]} 1/2-1/2

[Event "CZE-ch Women 2019"]
[Site "Prague"]
[Date "2019.06.18"]
[Round "4.3"]
[White "Kanakova, Natalie"]
[Black "Rodshtein, Tereza"]
[Result "1-0"]
[ECO "C55"]
[WhiteElo "2201"]
[BlackElo "2213"]
[Annotator "NA"]
[PlyCount "119"]
[EventDate "2019.06.15"]
[EventType "tourn"]
[EventCountry "CZE"]
[SourceTitle "playchess.com"]
[Source "ChessBase"]
[SourceQuality "1"]
[TimeControl "40/5400+30:1800+30"]

1. e4 {[%emt 0:00:00]} e5 {[%emt 0:00:00]} 2. Nf3 {[%emt 0:00:00]} Nc6 {[%emt 0:00:00]} 3. d4 {[%emt 0:00:00]} exd4 {[%emt 0:00:17]} 4. Bc4 {[%emt 0:00:07]} Nf6 {[%emt 0:02:07]} 5. e5 {[%emt 0:00:14]} d5 {[%emt 0:00:14]} 6. Bb5 {[%emt 0:00:06]} Ne4 {[%emt 0:00:39]} 7. Nxd4 {[%emt 0:00:09]} Bd7 {[%emt 0:00:08]} 8. Bxc6 {[%emt 0:00:08]} bxc6 {[%emt 0:00:05]} 9. O-O {[%emt 0:00:24]} Bc5 {[%emt 0:00:50]} 10. f3 {[%emt 0:00:25]} Ng5 {[%emt 0:00:19]} 11. Be3 {[%emt 0:00:30]} Bb6 {[%emt 0:10:27]} 12. f4 {[%emt 0:00:28]} Ne4 {[%emt 0:00:08]} 13. Nd2 {[%emt 0:00:17]} Nxd2 {[%emt 0:04:05]} 14. Qxd2 {[%emt 0:00:07]} c5 {[%emt 0:00:16]} 15. Nf3 {[%emt 0:00:12]} d4 {[%emt 0:02:00]} 16. Bf2 {[%emt 0:00:07]} Bc6 {[%emt 0:00:34]} 17. Qd3 {[%emt 0:00:27]} Qd5 {[%emt 0:08:56]} 18. a4 {[%emt 0:01:07]} c4 {[%emt 0:06:44]} 19. Qd2 {[%emt 0:00:50]} O-O-O {[%emt 0:01:03]} 20. a5 {[%emt 0:13:37]} Bc5 {[%emt 0:00:45]} 21. b4 {[%emt 0:04:29]} c3 {[%emt 0:07:36]} 22. Qd3 {[%emt 0:02:59]} Bxb4 {[%emt 0:01:13]} 23. Rfe1 {[%emt 0:27:46]} Bc5 {[%emt 0:23:10]} 24. e6 {[%emt 0:07:12]} f6 {[%emt 0:01:04]} 25. Rab1 {[%emt 0:03:36]} Rhe8 {[%emt 0:02:25]} 26. f5 {[%emt 0:08:22]} g6 {[%emt 0:00:14]} 27. Bh4 {[%emt 0:02:47]} g5 {[%emt 0:01:37]} 28. Bg3 {[%emt 0:02:13]} Rd6 {[%emt 0:12:09]} 29. Kh1 {[%emt 0:07:17]} Kd8 {[%emt 0:04:41]} 30. Bxd6 {[%emt 0:07:31]} Bxd6 {[%emt 0:02:54]} 31. Qxd4 {[%emt 0:06:33]} Qxf5 {[%emt 0:00:54]} 32. Qxc3 {[%emt 0:00:37]} Be4 {[%emt 0:01:31]} 33. Rb8+ {[%emt 0:03:27]} Ke7 {[%emt 0:00:02]} 34. Rxe8+ {[%emt 0:00:05]} Kxe8 {[%emt 0:00:03]} 35. Qe3 {[%emt 0:00:49]} Bd5 {[%emt 0:01:32]} 36. Qd3 {[%emt 0:02:10]} Qxd3 {[%emt 0:00:22]} 37. cxd3 {[%emt 0:00:01]} Bb4 {[%emt 0:00:07]} 38. Rb1 {[%emt 0:00:44]} c5 {[%emt 0:05:38]} 39. d4 {[%emt 0:00:05]} Bxe6 {[%emt 0:00:39]} 40. dxc5 {[%emt 0:01:05]} Bxc5 {[%emt 0:01:02]} 41. Rc1 {[%emt 0:02:00]} Bb4 {[%emt 0:03:45]} 42. Nd4 {[%emt 0:04:28]} Bd7 {[%emt 0:01:52]} 43. Nc6 {[%emt 0:00:58]} Bxc6 {[%emt 0:01:29]} 44. Rxc6 {[%emt 0:00:04]} Bxa5 {[%emt 0:00:03]} 45. Rxf6 {[%emt 0:00:04]} h5 {[%emt 0:06:09]} 46. Rh6 {[%emt 0:04:16]} h4 {[%emt 0:00:37]} 47. Rh8+ {[%emt 0:01:20]} Kf7 {[%emt 0:00:05]} 48. Rh7+ {[%emt 0:00:04]} Kg6 {[%emt 0:00:04]} 49. Rxa7 {[%emt 0:00:04]} Bd2 {[%emt 0:01:18]} 50. Ra6+ {[%emt 0:02:24]} Kh5 {[%emt 0:00:12]} 51. Kg1 {[%emt 0:01:16]} Be3+ {[%emt 0:00:06]} 52. Kf1 {[%emt 0:00:04]} Bf4 {[%emt 0:00:12]} 53. h3 {[%emt 0:03:34]} g4 {[%emt 0:04:53]} 54. Ra5+ {[%emt 0:01:53]} Bg5 {[%emt 0:00:11]} 55. hxg4+ {[%emt 0:00:14]} Kxg4 {[%emt 0:00:02]} 56. Kf2 {[%emt 0:00:16]} h3 {[%emt 0:05:52]} 57. gxh3+ {[%emt 0:02:05]} Kh4 {[%emt 0:00:05]} 58. Kg2 {[%emt 0:00:05]} Bd2 {[%emt 0:00:31]} 59. Ra4+ {[%emt 0:00:24]} Kh5 {[%emt 0:00:15]} 60. h4 {[%emt 0:00:22]} 1-0